fUSD/lending_fUSD_20240118
["ID","MTS","AMOUNT","RATE_DAILY","PERIOD"]
[312097465,1705618243828,-256.63,0.00026521,2]
[312097466,1705618243837,-294.33,0.00026521,2]
[312097467,1705618243846,-21540.8,0.00026575,2]
[312097468,1705618243856,-1796.59,0.00026575,2]
[312097469,1705618243866,-1000.0,0.00026623,2]
[312097470,1705618243875,-705.09,0.00026687,2]
[312097471,1705618243884,-2419.8551844,0.00026821,3]
[312097472,1705618243893,-181.0,0.00026854,2]
[312097473,1705618243903,-155.0,0.00027,2]
[312097474,1705618243912,-2000.0,0.00027,2]
[312097475,1705618243921,-300.0,0.00027,2]
[312097476,1705618243930,-416.11930695,0.00027,2]
[312097477,1705618243939,-150.985,0.00027077,2]
[312097478,1705618243949,-1355.0,0.00027077,2]
[312097479,1705618243958,-836.0,0.00027077,2]
[312097480,1705618243967,-946.0,0.00027077,2]
[312097481,1705618243976,-867.243,0.00027077,2]
[312097482,1705618243985,-1854.0,0.00027077,2]
[312097483,1705618243994,-214.0,0.00027077,2]
[312097484,1705618244004,-443.872,0.00027077,2]
[312097485,1705618244013,-1234.0,0.00027077,2]
[312097486,1705618244023,-1249.0,0.00027077,2]
[312097487,1705618244032,-996.0,0.00027077,2]
[312097488,1705618244041,-603.218,0.00027077,2]
[312097489,1705618244051,-426.0,0.00027077,2]
[312097490,1705618244061,-1628.702,0.00027077,2]
[312097491,1705618244071,-874.0,0.00027077,2]
[312097492,1705618244080,-183.317,0.00027077,2]
[312097493,1705618244089,-1285.0,0.00027077,2]
[312097494,1705618244099,-508.0,0.00027077,2]
[312097495,1705618244109,-319.0,0.00027077,2]
[312097496,1705618244119,-150.0,0.00027077,2]
[312097497,1705618244130,-2273.0,0.00027077,2]
[312097498,1705618244141,-2905.0,0.00027077,2]
[312097499,1705618244151,-18970.182,0.00027077,2]
[312097500,1705618244160,-3643.869,0.00027077,2]
[312097501,1705618244170,-5575.0,0.00027077,2]
[312097502,1705618244179,-4175.0,0.00027077,2]
[312097503,1705618244189,-19705.0,0.00027077,2]
[312097504,1705618244199,-1029.0,0.00027077,2]
[312097505,1705618244208,-164.35368918,0.00027174,2]
[312097506,1705618244218,-256.63,0.00027343,2]
[312097507,1705618244228,-294.33,0.00027343,2]
[312097508,1705618244241,-256.63,0.00027343,2]
[312097509,1705618244249,-256.63,0.00027343,2]
[312097510,1705618244258,-294.33,0.00027343,2]
[312097511,1705618244267,-256.63,0.00027343,2]
[312097512,1705618244278,-588.66,0.00027343,2]
[312097513,1705618244287,-294.33,0.00027343,2]
[312097514,1705618244296,-588.66,0.00027343,2]
[312097515,1705618244307,-256.63,0.00027343,2]
[312097516,1705618244318,-294.33,0.00027343,2]
[312097517,1705618244328,-513.26,0.00027343,2]
[312097518,1705618244340,-256.63,0.00027343,2]
[312097519,1705618244350,-294.33,0.00027343,2]
[312097520,1705618244360,-294.33,0.00027343,2]
[312097521,1705618244370,-256.63,0.00027343,2]
[312097522,1705618244379,-256.63,0.00027343,2]
[312097523,1705618244389,-256.63,0.00027343,2]
[312097524,1705618244399,-256.63,0.00027343,2]
[312097525,1705618244411,-256.63,0.00027343,2]
[312097526,1705618244422,-256.63,0.00027343,2]
[312097527,1705618244431,-200.0,0.00027397,5]
[312097528,1705618244440,-155.0,0.00027397,2]
[312097529,1705618244450,-1752.83,0.00027397,2]
[312097530,1705618244459,-236.83,0.00027397,2]
[312097531,1705618244468,-175.84,0.00027397,2]
[312097532,1705618244477,-299.34,0.00027397,2]
[312097533,1705618244486,-158.11,0.00027397,2]
[312097534,1705618244495,-153.81,0.00027397,2]
[312097535,1705618244504,-8000.0,0.000274,2]
[312097536,1705618244514,-167.79,0.000274,2]
[312097537,1705618244523,-167.79,0.000274,2]
[312097538,1705618244532,-167.79,0.000274,2]
[312097539,1705618244541,-167.79,0.000274,2]
[312097540,1705618244550,-167.79,0.000274,2]
[312097541,1705618244559,-167.79,0.000274,2]
[312097542,1705618244568,-167.79,0.000274,2]
[312097543,1705618244577,-167.79,0.000274,2]
[312097544,1705618244586,-705.09,0.00027666,2]
[312097545,1705618244595,-155.85,0.00027688,2]
[312097546,1705618244605,-5631.99347675,0.00027713,2]
[312097547,1705618244616,-455.53,0.00027864,2]
[312097548,1705618244625,-153.81,0.00027872,2]
[312097549,1705618244634,-204.0,0.00027892,11]
[312097550,1705618244644,-200.0,0.00027945,5]
[312097551,1705618244654,-203.0550109,0.00028,2]
[312097552,1705618244665,-929.11400258,0.00028,2]
[312097553,1705618244674,-688.79473801,0.00028,2]
[312097554,1705618244684,-2000.0,0.00028,2]
[312097555,1705618244693,-700.0,0.00028,3]
[312097556,1705618244702,-300.0,0.00028,2]
[312097557,1705618244711,-200.0,0.00028,2]
[312097558,1705618244721,-20000.0,0.00028,2]
[312097559,1705618244731,-167.0,0.000282,2]
[312097560,1705618244740,-162.78037958,0.00028203,2]
[312097561,1705618244749,-886.98098412,0.00028204,2]
[312097562,1705618244759,-163.55,0.00028307,2]
[312097563,1705618244768,-170.45,0.00028307,2]
[312097564,1705618244778,-153.81,0.00028347,2]
[312097565,1705618244788,-158.11,0.00028376,2]
[312097566,1705618244797,-200.0,0.00028428,2]
[312097567,1705618244807,-200.0,0.00028493,5]
[312097568,1705618244816,-322.84503178,0.000285,2]
[312097569,1705618244826,-1000.0,0.000285,2]
[312097570,1705618244834,-2419.8551844,0.00028591,4]
[312097571,1705618244844,-705.09,0.00028644,2]
[312097572,1705618244853,-500.0,0.000287,2]
[312097573,1705618244862,-411.0,0.0002875,2]
[312097574,1705618244872,-155.0,0.00028767,2]
[312097575,1705618244881,-1752.83,0.00028767,2]
[312097576,1705618244890,-7742.0,0.000288,2]
[312097577,1705618244899,-153.81,0.00028822,2]
[312097578,1705618244908,-457.32864088,0.000289,15]
[312097579,1705618244917,-5631.99347675,0.00028911,2]
[312097580,1705618244926,-150.0,0.00028979,2]
[312097581,1705618244935,-314.21211402,0.00029,2]
[312097582,1705618244945,-34030.61655907,0.00029,2]
[312097583,1705618244954,-2000.0,0.00029,2]
[312097584,1705618244963,-450.0,0.00029,2]
[312097585,1705618244972,-353.2699401,0.00029041,5]
[312097586,1705618244981,-1000.0,0.00029285,2]
[312097587,1705618244990,-167.0,0.000293,2]
[312097588,1705618245000,-158.11,0.00029354,2]
[312097589,1705618245009,-236.83,0.00029416,2]
[312097590,1705618245018,-299.34,0.00029416,2]
[312097591,1705618245027,-155.0,0.000295,3]
[312097592,1705618245036,-705.09,0.00029623,2]
[312097593,1705618245045,-2054.62035933,0.00029626,30]
[312097594,1705618245055,-175.50184765,0.000298,2]
[312097595,1705618245064,-730.99997995,0.000298,2]
[312097596,1705618245073,-153.0,0.000298,2]
[312097597,1705618245082,-533.99423876,0.00029899,2]
[312097598,1705618245091,-867.2,0.00029969,10]
[312097599,1705618245100,-150.0,0.00029979,2]
[312097600,1705618245109,-1686.7288624,0.00029979,2]
[312097601,1705618245119,-582.8969316,0.00029979,2]
[312097602,1705618245128,-26534.6579598,0.00029979,2]
[312097603,1705618245138,-1433.2296726,0.00029979,2]
[312097604,1705618245146,-144858.4411816,0.0002998,2]
[312097605,1705618245155,-1882.48,0.00029986,2]
[312097606,1705618245165,-401.69,0.00029986,2]
[312097607,1705618245174,-401.69,0.00029986,2]
[312097608,1705618245183,-941.24,0.00029986,2]
[312097609,1705618245192,-401.69,0.00029986,2]
[312097610,1705618245202,-941.24,0.00029986,2]
[312097611,1705618245211,-401.69,0.00029986,2]
[312097612,1705618245220,-941.24,0.00029986,2]
[312097613,1705618245231,-941.24,0.00029986,2]
[312097614,1705618245243,-401.69,0.00029986,2]
[312097615,1705618245252,-1040.65,0.0002999,10]
[312097616,1705618245261,-155.0,0.00029998,2]
[312097617,1705618245270,-337.02257308,0.00029998,2]
[312097618,1705618245279,-31604.425188,0.00029999,2]
[312097619,1705618245288,-100000.0,0.0003,2]
[312097620,1705618245298,-26544.37323743,0.0003,4]
[312097621,1705618245307,-309.8564897,0.0003,4]
[312097622,1705618245318,-2552.9863992,0.0003,4]
[312097623,1705618245327,-251.80837765,0.0003,2]
[312097624,1705618245336,-19026.01005334,0.0003,4]
[312097625,1705618245345,-155.0,0.0003,4]
[312097626,1705618245354,-2162.8756008,0.0003,4]
[312097627,1705618245363,-582.53618936,0.0003,2]
[312097628,1705618245373,-7000.0,0.0003,7]
[312097629,1705618245382,-400.0,0.0003,2]
[312097630,1705618245391,-307.37637032,0.0003,7]
[312097631,1705618245400,-55158.71569206,0.0003,2]
[312097632,1705618245410,-190170.06987664,0.0003,4]
[312097633,1705618245419,-9637.69139965,0.0003,2]
[312097634,1705618245429,-691.78118502,0.0003,2]
[312097635,1705618245438,-773.84986374,0.0003,4]
[312097636,1705618245447,-770.36519149,0.0003,2]
[312097637,1705618245458,-1806.65858183,0.0003,4]
[312097638,1705618245466,-155.0,0.0003,2]
[312097639,1705618245475,-200.0,0.0003,2]
[312097640,1705618245486,-49088.19529151,0.0003,4]
[312097641,1705618245495,-683.63999189,0.0003,4]
[312097642,1705618245504,-155.0,0.0003,4]
[312097643,1705618245515,-155.0,0.0003,4]
[312097644,1705618245524,-80764.10598263,0.0003,2]
[312097645,1705618245533,-1969.19576626,0.0003,2]
[312097646,1705618245543,-2000.0,0.0003,2]
[312097647,1705618245553,-5000.0,0.0003,2]
[312097648,1705618245562,-5000.0,0.0003,2]
[312097649,1705618245572,-750.0,0.0003,3]
[312097650,1705618245582,-1226.15,0.0003,2]
[312097651,1705618245591,-155.0,0.0003,2]
[312097652,1705618245599,-150.40394587,0.0003,10]
[312097653,1705618245608,-150.40394587,0.0003,8]
[312097654,1705618245617,-150.40394587,0.0003,10]
[312097655,1705618245627,-150.40394587,0.0003,12]
[312097656,1705618245636,-150.40394587,0.0003,11]
[312097657,1705618245645,-150.40394587,0.0003,9]
[312097658,1705618245655,-150.40394587,0.0003,12]
[312097659,1705618245667,-150.40394587,0.0003,9]
[312097660,1705618245676,-150.40394587,0.0003,9]
[312097661,1705618245685,-150.40394587,0.0003,10]
[312097662,1705618245694,-150.40394587,0.0003,10]
[312097663,1705618245703,-150.40394587,0.0003,10]
[312097665,1705618245712,-150.40394587,0.0003,10]
[312097666,1705618245722,-150.40394587,0.0003,10]
[312097667,1705618245731,-150.40394587,0.0003,10]
[312097668,1705618245740,-150.40394587,0.0003,8]
[312097669,1705618245750,-151.0,0.0003,7]
[312097670,1705618245759,-151.0,0.0003,7]
[312097671,1705618245768,-244.442349,0.0003,7]
[312097672,1705618245777,-151.0,0.0003,7]
[312097673,1705618245787,-151.0,0.0003,7]
[312097674,1705618245796,-151.0,0.0003,7]
[312097675,1705618245806,-151.0,0.0003,7]
[312097676,1705618245816,-1200.0,0.0003,2]
[312097677,1705618245825,-151.0,0.0003,7]
[312097678,1705618245835,-419.7668,0.0003,2]
[312097679,1705618245844,-157.83,0.0003,2]
[312097680,1705618245853,-151.0,0.0003,7]
[312097681,1705618245862,-151.0,0.0003,7]
[312097682,1705618245872,-547.26524,0.0003,7]
[312097683,1705618245881,-547.26524,0.0003,7]
[312097684,1705618245890,-151.0,0.0003,7]
[312097685,1705618245899,-278.333763,0.0003,7]
[312097686,1705618245908,-3000.0,0.0003,2]
[312097690,1705618246073,-3000.0,0.0003,2]
[312097692,1705618246083,-3000.0,0.0003,2]
[312097694,1705618246093,-3000.0,0.0003,2]
[312097695,1705618246102,-3000.0,0.0003,2]
[312097696,1705618246111,-3000.0,0.0003,2]
[312097697,1705618246121,-151.0,0.0003,7]
[312097698,1705618246131,-151.0,0.0003,7]
[312097699,1705618246140,-151.0,0.0003,7]
[312097700,1705618246150,-1072.074095,0.0003,7]
[312097701,1705618246159,-1072.074095,0.0003,7]
[312097702,1705618246169,-151.0,0.0003,7]
[312097703,1705618246178,-200.0,0.0003,7]
[312097704,1705618246187,-1965.797818,0.0003,7]
[312097705,1705618246198,-1965.797818,0.0003,7]
[312097706,1705618246207,-151.0,0.0003,7]
[312097707,1705618246217,-151.0,0.0003,7]
[312097708,1705618246227,-261.112839,0.0003,7]
[312097709,1705618246241,-202.63774724,0.0003,7]
[312097710,1705618246250,-151.0,0.0003,7]
[312097711,1705618246259,-151.0,0.0003,7]
[312097712,1705618246268,-2448.8941,0.0003,2]
[312097713,1705618246278,-152.315517,0.0003,7]
[312097714,1705618246287,-151.0,0.0003,7]
[312097715,1705618246297,-204.0,0.00030033,14]
[312097716,1705618246306,-151.0,0.00030076,7]
[312097717,1705618246316,-275.452396,0.00030076,7]
[312097718,1705618246326,-151.0,0.00030076,7]
[312097719,1705618246335,-151.0,0.00030076,7]
[312097720,1705618246344,-151.0,0.00030076,7]
[312097721,1705618246355,-835.0,0.00030077,2]
[312097722,1705618246364,-946.0,0.00030077,2]
[312097723,1705618246374,-1852.0,0.00030077,2]
[312097724,1705618246383,-1234.0,0.00030077,2]
[312097725,1705618246392,-1249.0,0.00030077,2]
[312097726,1705618246402,-426.0,0.00030077,2]
[312097727,1705618246411,-862.0,0.00030077,2]
[312097728,1705618246420,-1138.0,0.00030077,2]
[312097729,1705618246429,-427.448,0.00030077,2]
[312097730,1705618246438,-318.0,0.00030077,2]
[312097731,1705618246448,-2273.0,0.00030077,2]
[312097732,1705618246457,-2905.0,0.00030077,2]
[312097733,1705618246467,-2391.015,0.00030077,2]
[312097734,1705618246477,-19705.0,0.00030077,2]
[312097735,1705618246487,-242.229,0.00030077,2]
[312097736,1705618246496,-151.0,0.000301,7]
[312097737,1705618246505,-278.23921,0.000301,7]
[312097738,1705618246514,-278.23921,0.000301,7]
[312097739,1705618246524,-529.010673,0.000301,7]
[312097740,1705618246533,-529.010673,0.000301,7]
[312097741,1705618246542,-7742.49244481,0.000301,2]
[312097742,1705618246551,-5631.99347675,0.00030109,2]
[312097743,1705618246561,-455.53,0.00030128,2]
[312097744,1705618246569,-1752.83,0.00030136,2]
[312097745,1705618246578,-153.84,0.00030137,2]
[312097746,1705618246588,-155.0,0.00030137,2]
[312097747,1705618246597,-5800.0,0.00030281,2]
[312097748,1705618246607,-152.03832709,0.00030299,2]
[312097749,1705618246616,-158.11,0.00030333,2]
[312097750,1705618246626,-2419.8551844,0.00030361,5]
[312097751,1705618246635,-167.0,0.000304,2]
[312097752,1705618246644,-705.09,0.00030601,2]
[312097753,1705618246653,-151.0,0.00030645,7]
[312097754,1705618246663,-151.0,0.00030645,7]
[312097755,1705618246672,-151.0,0.00030645,7]
[312097756,1705618246682,-157.650908,0.00030645,7]
[312097757,1705618246691,-19806.38301923,0.00030687,7]
[312097758,1705618246700,-31281.16172418,0.00030687,7]
[312097759,1705618246709,-16810.38519606,0.00030687,7]
[312097760,1705618246720,-9273.43410288,0.00030687,7]
[312097761,1705618246729,-10549.01536811,0.00030687,7]
[312097762,1705618246738,-151.0,0.00030687,7]
[312097763,1705618246749,-151.0,0.00030687,7]
[312097764,1705618246758,-151.0,0.00030687,7]
[312097765,1705618246768,-258.784641,0.00030687,7]
[312097766,1705618246778,-151.0,0.00030687,7]
[312097767,1705618246787,-181.0,0.00030884,2]
[312097768,1705618246797,-194.0,0.00030884,2]
[312097769,1705618246807,-941.24,0.00030945,2]
[312097770,1705618246816,-401.69,0.00030945,2]
[312097771,1705618246825,-401.69,0.00030945,2]
[312097772,1705618246834,-941.24,0.00030945,2]
[312097773,1705618246844,-395.45,0.00030945,2]
[312097774,1705618246853,-941.24,0.00030945,2]
[312097775,1705618246864,-941.24,0.00030945,2]
[312097776,1705618246874,-941.24,0.00030945,2]
[312097777,1705618246884,-230.01,0.00030945,2]
[312097778,1705618246893,-150.0,0.00030979,2]
[312097779,1705618246903,-100000.0,0.00031,2]
[312097780,1705618246912,-2000.0,0.00031,2]
[312097781,1705618246922,-200.0,0.00031013,2]
[312097782,1705618246931,-153.84,0.0003105,2]
[312097783,1705618246941,-2052.0,0.00031185,30]
[312097784,1705618246951,-150.0,0.00031196,7]
[312097785,1705618246960,-166.45,0.0003127,2]
[312097786,1705618246970,-5631.99347675,0.00031307,2]
[312097787,1705618246979,-158.11,0.00031311,2]
[312097788,1705618246989,-3602.22,0.00031426,2]
[312097789,1705618246998,-1071.59,0.00031426,2]
[312097790,1705618247007,-236.83,0.00031435,2]
[312097791,1705618247017,-299.34,0.00031435,2]
[312097792,1705618247027,-167.0,0.000315,2]
[312097793,1705618247037,-1752.83,0.00031506,2]
[312097794,1705618247046,-408.91,0.00031507,2]
[312097795,1705618247056,-155.0,0.00031507,2]
[312097796,1705618247065,-705.09,0.0003158,2]
[312097797,1705618247074,-197.4,0.00031644,2]
[312097798,1705618247083,-300.0,0.00031726,2]
[312097799,1705618247092,-20151.0111753,0.00031776,2]
[312097800,1705618247101,-27762.1340439,0.00031776,2]
[312097801,1705618247111,-755.9269253,0.00031778,2]
[312097802,1705618247121,-2946.6357048,0.00031778,2]
[312097803,1705618247130,-33013.02190922,0.00031798,5]
[312097804,1705618247139,-157.35,0.00031799,2]
[312097805,1705618247149,-151.0,0.000318,7]
[312097806,1705618247158,-76758.3140937,0.000318,3]
[312097807,1705618247167,-5000.0,0.0003189,2]
[312097808,1705618247177,-700.0,0.000319,11]
[312097809,1705618247187,-457.32864088,0.000319,20]
[312097810,1705618247197,-1000.0,0.00031948,2]
[312097811,1705618247206,-153.84,0.00031963,2]
[312097812,1705618247216,-150.0,0.00031979,2]
[312097813,1705618247225,-100000.0,0.00032,3]
[312097814,1705618247235,-1051.1274052,0.00032,14]
[312097815,1705618247249,-20000.0,0.00032,2]
[312097816,1705618247258,-4000.55499984,0.00032,2]
[312097817,1705618247267,-28668.64002817,0.00032,4]
[312097818,1705618247277,-10000.0,0.00032,18]
[312097819,1705618247287,-2000.0,0.00032,2]
[312097820,1705618247297,-11128.06815073,0.00032,30]
[312097821,1705618247306,-800.0,0.00032,3]
[312097822,1705618247318,-324.95515888,0.00032,2]
[312097823,1705618247328,-324.95515888,0.00032,2]
[312097824,1705618247337,-324.95515888,0.00032,2]
[312097825,1705618247347,-324.95515888,0.00032,2]
[312097826,1705618247356,-324.95515888,0.00032,2]
[312097827,1705618247366,-324.95515888,0.00032,2]
[312097828,1705618247376,-324.95515888,0.00032,2]
[312097829,1705618247385,-324.95515888,0.00032,2]
[312097830,1705618247394,-324.95515888,0.00032,2]
[312097831,1705618247404,-324.95515888,0.00032,2]
[312097832,1705618247414,-324.95515888,0.00032,2]
[312097833,1705618247423,-324.95515888,0.00032,2]
[312097834,1705618247432,-324.95515888,0.00032,2]
[312097835,1705618247441,-324.95515888,0.00032,2]
[312097836,1705618247451,-324.95515888,0.00032,2]
[312097837,1705618247460,-324.95515888,0.00032,2]
[312097838,1705618247469,-324.95515888,0.00032,2]
[312097839,1705618247479,-324.95515888,0.00032,2]
[312097840,1705618247488,-324.95515888,0.00032,2]
[312097841,1705618247498,-324.95515888,0.00032,2]
[312097842,1705618247508,-324.95515888,0.00032,2]
[312097843,1705618247518,-324.95515888,0.00032,2]
[312097844,1705618247528,-324.95515888,0.00032,2]
[312097845,1705618247537,-324.95515888,0.00032,2]
[312097846,1705618247546,-324.95515888,0.00032,2]
[312097847,1705618247555,-324.95515888,0.00032,2]
[312097848,1705618247564,-324.95515888,0.00032,2]
[312097849,1705618247573,-324.95515888,0.00032,2]
[312097850,1705618247582,-324.95515888,0.00032,2]
[312097851,1705618247592,-324.95515888,0.00032,2]
[312097852,1705618247601,-324.95515888,0.00032,2]
[312097853,1705618247610,-324.95515888,0.00032,2]
[312097854,1705618247620,-324.95515888,0.00032,2]
[312097855,1705618247629,-324.95515888,0.00032,2]
[312097856,1705618247638,-324.95515888,0.00032,2]
[312097857,1705618247647,-324.95515888,0.00032,2]
[312097858,1705618247657,-324.95515888,0.00032,2]
[312097859,1705618247666,-324.95515888,0.00032,2]
[312097860,1705618247675,-324.95515888,0.00032,2]
[312097861,1705618247684,-324.95515888,0.00032,2]
[312097862,1705618247693,-324.95515888,0.00032,2]
[312097863,1705618247702,-324.95515888,0.00032,2]
[312097864,1705618247711,-324.95515888,0.00032,2]
[312097865,1705618247720,-324.95515888,0.00032,2]
[312097866,1705618247729,-324.95515888,0.00032,2]
[312097867,1705618247739,-324.95515888,0.00032,2]
[312097868,1705618247748,-324.95515888,0.00032,2]
[312097869,1705618247758,-324.95515888,0.00032,2]
[312097870,1705618247768,-324.95515888,0.00032,2]
[312097871,1705618247777,-324.95515888,0.00032,2]
[312097872,1705618247786,-3999.99824823,0.00032,2]
[312097873,1705618247796,-2419.8551844,0.0003213,5]
[312097874,1705618247806,-204.0,0.00032173,18]
[312097875,1705618247815,-158.11,0.0003229,2]
[312097876,1705618247824,-295.05028948,0.00032331,7]
[312097877,1705618247834,-455.53,0.00032392,2]
[312097878,1705618247844,-5631.99347675,0.00032504,4]
[312097879,1705618247854,-181.17942115,0.00032522,7]
[312097880,1705618247863,-181.17942115,0.00032541,7]
[312097881,1705618247873,-5954.73449507,0.00032547,2]
[312097882,1705618247882,-705.09,0.00032558,2]
[312097883,1705618247891,-247.42,0.00032563,2]
[312097884,1705618247901,-418.32,0.00032563,2]
[312097885,1705618247910,-585.0,0.00032588,2]
[312097886,1705618247920,-164.35368918,0.00032683,2]
[312097887,1705618247929,-2052.0,0.00032826,30]
[312097888,1705618247939,-152.62615091,0.00032853,7]
[312097889,1705618247947,-295.05028948,0.00032869,7]
[312097890,1705618247957,-483.95530197,0.00032876,7]
[312097891,1705618247966,-230.13733834,0.00032876,7]
[312097892,1705618247976,-244.25337707,0.00032876,7]
[312097893,1705618247985,-195.56179294,0.00032876,7]
[312097894,1705618247994,-500.0,0.00032876,7]
[312097895,1705618248004,-173.96686578,0.00032876,7]
[312097896,1705618248013,-161.09613683,0.00032876,7]
[312097897,1705618248022,-338.76871138,0.00032876,7]
[312097898,1705618248031,-404.38011947,0.00032876,7]
[312097899,1705618248042,-170.97736395,0.00032876,7]
[312097900,1705618248052,-208.495155,0.00032876,7]
[312097901,1705618248063,-500.0,0.00032876,7]
[312097902,1705618248074,-338.65061691,0.00032876,7]
[312097903,1705618248084,-500.0,0.00032876,7]
[312097904,1705618248095,-500.0,0.00032876,7]
[312097905,1705618248107,-150.0,0.00032876,7]
[312097906,1705618248117,-164.96128605,0.00032876,7]
[312097907,1705618248126,-500.0,0.00032876,7]
[312097908,1705618248137,-500.0,0.00032876,7]
[312097909,1705618248147,-402.69727798,0.00032876,7]
[312097910,1705618248156,-350.05213863,0.00032876,7]
[312097911,1705618248166,-257.19603964,0.00032876,7]
[312097912,1705618248175,-1752.83,0.00032876,2]
[312097913,1705618248184,-153.84,0.00032877,2]
[312097914,1705618248193,-987.9,0.00032877,15]
[312097915,1705618248202,-1629.8469229,0.00032877,2]
[312097916,1705618248211,-544.4881799,0.00032877,2]
[312097917,1705618248220,-155.0,0.00032877,2]
[312097918,1705618248229,-1426.88693879,0.000329,10]
[312097919,1705618248242,-260132.22335809,0.000329,7]
[312097920,1705618248251,-1000.0,0.000329,2]
[312097921,1705618248260,-412.90436187,0.000329,2]
[312097922,1705618248270,-1101.73114895,0.000329,2]
[312097923,1705618248279,-635.56108004,0.000329,2]
[312097924,1705618248288,-262.0,0.000329,2]
[312097925,1705618248297,-1500.0,0.000329,2]
[312097926,1705618248306,-156.073471,0.000329,7]
[312097927,1705618248316,-151.0,0.000329,7]
[312097928,1705618248326,-200.0,0.000329,2]
[312097929,1705618248336,-151.0,0.000329,7]
[312097930,1705618248487,-151.0,0.000329,7]
[312097931,1705618248497,-157.263635,0.000329,7]
[312097932,1705618248506,-151.0,0.000329,7]
[312097933,1705618248516,-172.572655,0.000329,7]
[312097934,1705618248525,-151.0,0.000329,7]
[312097935,1705618248534,-151.0,0.000329,7]
[312097936,1705618248544,-151.0,0.000329,7]
[312097937,1705618248554,-151.0,0.000329,7]
[312097938,1705618248564,-547.26524,0.000329,7]
[312097939,1705618248573,-547.26524,0.000329,7]
[312097940,1705618248583,-151.0,0.000329,7]
[312097941,1705618248592,-155.94884,0.000329,7]
[312097942,1705618248603,-151.0,0.000329,7]
[312097943,1705618248614,-151.0,0.000329,7]
[312097944,1705618248625,-1072.074095,0.000329,7]
[312097945,1705618248635,-1072.074095,0.000329,7]
[312097946,1705618248644,-151.0,0.000329,7]
[312097947,1705618248653,-5401.40939383,0.000329,2]
[312097948,1705618248663,-1965.797818,0.000329,7]
[312097949,1705618248672,-1965.797818,0.000329,7]
[312097950,1705618248681,-800.70741833,0.000329,2]
[312097951,1705618248690,-151.0,0.000329,7]
[312097952,1705618248699,-151.0,0.000329,7]
[312097953,1705618248708,-151.0,0.000329,7]
[312097954,1705618248718,-151.0,0.000329,7]
[312097955,1705618248727,-151.0,0.000329,7]
[312097956,1705618248736,-500.0,0.000329,2]
[312097957,1705618248746,-152.0,0.00032904,3]
[312097958,1705618248755,-174.00751121,0.00032941,7]
[312097959,1705618248765,-151.0,0.00032977,7]
[312097960,1705618248775,-151.0,0.00032977,7]
[312097961,1705618248785,-24815.5731893,0.00032977,2]
[312097962,1705618248795,-1340.3758922,0.00032977,2]
[312097963,1705618248807,-295.05028948,0.00032978,7]
[312097964,1705618248816,-150.0,0.00032979,2]
[312097965,1705618248826,-152.62615091,0.00032982,7]
[312097966,1705618248835,-361.06198822,0.00032996,4]
[312097967,1705618248844,-522.14916301,0.00032998,4]
[312097968,1705618248854,-366.47763502,0.00032998,4]
[312097969,1705618248863,-100000.0,0.00033,3]
[312097970,1705618248873,-151.0,0.00033,7]